Workbook

Sheet 2012 진학현황-주요대학
A1: 2012 계원예술고등학교 주요대학 진학현황
K2: 2012. 03.07현재
A3: 번호 | B3: 대 학 명 | C3: 재 학 생 | L3: 졸 업 생
C4: 미술과 (118명) | E4: 음악과 (124명) | G4: 무용과 (38명) | I4: 연영과 (40명) | K4: 소 계 (320명)
A6: 1 | B6: 건국대 | C6: 7 | E6: 2 | I6: 1 | K6: 10
A7: 2 | B7: 경희대 | C7: 2 | E7: 4 | G7: 2 | K7: 8 | L7: 3
A8: 3 | B8: 고려대 | C8: 3 | K8: 3
A9: 4 | B9: 국민대 | C9: 5 | E9: 1 | G9: 1 | I9: 1 | K9: 8 | L9: 2
A10: 5 | B10: 단국대 | C10: 1 | E10: 6 | I10: 5 | K10: 12 | L10: 4
A11: 6 | B11: 동국대 | C11: 1 | I11: 3 | K11: 4
A12: 7 | B12: 서울대 | C12: 5 | E12: 3 | K12: 8 | L12: 2
A13: 8 | B13: 성균관대 | C13: 6 | G13: 3 | I13: 1 | K13: 10 | L13: 7
A14: 9 | B14: 숙명여대 | C14: 2 | E14: 10 | K14: 12 | L14: 4
A15: 10 | B15: 연세대 | C15: 1 | E15: 1 | K15: 2 | L15: 3
A16: 11 | B16: 이화여대 | C16: 27 | E16: 8 | K16: 35 | L16: 12
A17: 12 | B17: 중앙대 | C17: 5 | E17: 6 | G17: 3 | I17: 1 | K17: 15 | L17: 7
A18: 13 | B18: 한국예술종합 | C18: 3 | E18: 3 | G18: 5 | K18: 11 | L18: 6
A19: 14 | B19: 한양대 | E19: 3 | G19: 6 | K19: 9 | L19: 5
A20: 15 | B20: 홍익대 | C20: 5 | K20: 5 | L20: 6
A21: 소계 | C21: =SUM(C6:D20) -> 73 | E21: =SUM(E6:F20) -> 47 | G21: =SUM(G6:H20) -> 20 | I21: =SUM(I6:J20) -> 12 | K21: =SUM(K6:K20) -> 152 | L21: =SUM(L6:L20) -> 61
A22: 1. 중복합격된 인원은 제외하고 실제 등록 후 진학예정인 대학을 기준으로 작성함.

Sheet 2013 진학현황-주요대학
A1: 2013 계원예술고등학교 대학진학현황
A2: 2013. 02.24 현재
A3: 번호 | B3: 대 학 명 | C3: 재 학 생 | N3: 졸업생
C4: 미술과 (123명) | E4: 음악과 (120명) | G4: 무용과 (39명) | I4: 연영과 (37명) | K4: 소 계 (319명)
A6: 1 | B6: 가천대 | D6: 9 | F6: 3 | I6: 4 | K6: =SUM(C6+E6+G6+I6) -> 4 | L6: =SUM(D6+F6+H6+J6) -> 12 | M6: =SUM(K6:L6) -> 16 | N6: =SUM(#REF!) -> 
A7: 2 | B7: 강남대 | F7: 1 | K7: =SUM(C7+E7+G7+I7) -> 0 | L7: =SUM(D7+F7+H7+J7) -> 1 | M7: =SUM(K7:L7) -> 1
A8: 1 | B8: 건국대 | C8: 2 | I8: 3 | K8: 5
A9: 2 | B9: 경희대 | C9: 2 | E9: 8 | G9: 6 | K9: 16 | N9: 6
A10: 3 | B10: 고려대 | C10: 1 | K10: 1
A11: 4 | B11: 국민대 | C11: 2 | E11: 3 | G11: 5 | K11: 10
A12: 5 | B12: 단국대 | G12: 1 | I12: 4 | K12: 5
A13: 6 | B13: 동국대 | C13: 3 | K13: 3 | N13: 5
A14: 7 | B14: 서울대 | C14: 7 | E14: 2 | K14: 9 | N14: 4
A15: 8 | B15: 성균관대 | C15: 5 | G15: 2 | I15: 1 | K15: 8 | N15: 1
A16: 9 | B16: 숙명여대 | C16: 1 | E16: 12 | G16: 3 | K16: 16 | N16: 2
A17: 10 | B17: 연세대 | E17: 2 | K17: 2 | N17: 1
A18: 11 | B18: 이화여대 | C18: 13 | E18: 6 | G18: 1 | K18: 20 | N18: 9
A19: 12 | B19: 중앙대 | C19: 4 | E19: 4 | G19: 3 | I19: 4 | K19: 15 | N19: 5
A20: 13 | B20: 한국예술종합 | C20: 3 | E20: 3 | G20: 3 | I20: 2 | K20: 11 | N20: 4
A21: 14 | B21: 한양대 | E21: 10 | G21: 2 | I21: 1 | K21: 13 | N21: 5
A22: 15 | B22: 홍익대 | C22: 12 | K22: 12 | N22: 6
A23: 소계 | C23: =SUM(C8:D22) -> 55 | E23: =SUM(E8:F22) -> 50 | G23: =SUM(G8:H22) -> 26 | I23: =SUM(I8:J22) -> 15 | K23: =SUM(K8:M22) -> 146 | N23: =SUM(N8:N22) -> 48
A24: 41 | B24: SADI | D24: 4 | K24: =SUM(C24+E24+G24+I24) -> 0 | L24: =SUM(D24+F24+H24+J24) -> 4 | M24: =SUM(K24:L24) -> 4 | N24: =SUM(#REF!) -> 
A25: 42 | B25: 유학 | C25: 1 | D25: 2 | I25: 1 | K25: =SUM(C25+E25+G25+I25) -> 2 | L25: =SUM(D25+F25+H25+J25) -> 2 | M25: =SUM(K25:L25) -> 4 | N25: =SUM(#REF!) -> 
A26: 43 | B26: 전문대 | D26: 1 | F26: 1 | J26: 1 | K26: =SUM(C26+E26+G26+I26) -> 0 | L26: =SUM(D26+F26+H26+J26) -> 3 | M26: =SUM(K26:L26) -> 3 | N26: =SUM(#REF!) -> 
A27: 소 계 | C27: =SUM(C6:C26) -> 111 | D27: =SUM(D6:D26) -> 16 | E27: =SUM(E6:E26) -> 100 | F27: =SUM(F6:F26) -> 5 | G27: =SUM(G6:G26) -> 52 | H27: =SUM(H6:H26) -> 0 | I27: =SUM(I6:I26) -> 35 | J27: =SUM(J6:J26) -> 1 | K27: =SUM(K6:K26) -> 298 | L27: =SUM(L6:L26) -> 22 | M27: =SUM(M6:M26) -> 28 | N27: 83
A28: 합격자수 | C28: =SUM(C27,D27) -> 127 | E28: =SUM(E27,F27) -> 105 | G28: =SUM(G27,H27) -> 52 | I28: =SUM(I27,J27) -> 36 | K28: =SUM(C28:J28) -> 320
A29: 합격률(%) | C29: =C28/123*100 -> 103.3 | E29: =E28/120*100 -> 87.5 | G29: =G28/39*100 -> 133.3 | I29: =I28/37*100 -> 97.3 | K29: =ROUND(K28/319*100,1)&" (재학생)" -> 100.3 (재학생)
A30: 1. 중복합격된 인원은 제외하고 실제 등록 후 진학예정인 대학을 기준으로 작성함.
